Cogmind - Beta 12 @@@ ROGUE MODE // 2023.11.09 @ 18:31:38 Player: kaj Result: Destroyed by Y-45 Defender with Heavy Assault Rifle Performance ------------- Evolutions (2) 1000 Regions Visited (5) 1000 Robots Destroyed (42) 210 Value Destroyed (1257) 1257 Prototype IDs (0) 0 Alien Tech Used (0) 0 Bonus (0) 0 TOTAL SCORE: 3467 Bonus ------- None Cogmind --------- Core Integrity 0/550 Matter 300/300 Energy 66/100 System Corruption 5% Temperature Cool (9) Movement Core (50) Location -8/Storage Parts ------- > --- POWER (1) -------- (None) > --- PROPULSION (3) --- (None) > --- UTILITY (5) ------ Targeting Computer Targeting Computer Core Analyzer Armor Integrity Analyzer > --- WEAPON (2) ------- Scythe > --- INVENTORY (5) ---- Large Matter Pod (150) Experimental Sensor Array Utility Shielding Beam Rifle Particle Gun Peak State ------------ > --- POWER ------------ (None) > --- PROPULSION ------- Aluminum Leg Compact Wheel Compact Wheel > --- UTILITY ---------- Huge Storage Unit Trap Scanner Signal Interpreter Utility Shielding High-powered Tractor Beam > --- WEAPON ----------- Particle Gun Heavy Assault Rifle > --- INVENTORY -------- Airjet Huge Storage Unit Large Matter Pod Compact Matter Pod Compact Matter Pod Experimental Sensor Array Targeting Computer Targeting Computer Core Analyzer Armor Integrity Analyzer Utility Shielding High-powered Tractor Beam EM Pulse Gun Small Laser Small Laser Beam Rifle Rocket Launcher Rocket Launcher Hammer [Rating: 19] Favorites ----------- Power Light Ion Engine Engine Light Ion Engine Propulsion Light Treads Treads Light Treads Leg Aluminum Leg Wheel Compact Wheel Hover Unit Airjet Utility Huge Storage Unit Device Sensor Array Storage Huge Storage Unit Processor Signal Interpreter Protection Utility Shielding Weapon Light Assault Rifle Energy Gun Small Laser Ballistic Gun Light Assault Rifle Ballistic Cannon Improved Light Cannon Launcher Rocket Launcher Impact Weapon Hammer Slashing Weapon Scythe Build | -11 -10 -10 -9 -8 -8 ------- Run | Jun Mat Min Mat Mat Sto Slots Evolved 4 | . . . 2 2 . Power . | . . . . . . Propulsion 1 | . . . 1 . . Utility 3 | . . . 1 2 . Weapon . | . . . . . . Parts Attached 48 | 3 2 . 18 23 2 Power 4 | . . . 3 1 . Engine 4 | . . . 3 1 . Core . | . . . . . . Reactor . | . . . . . . Propulsion 12 | 2 . . 6 4 . Treads 4 | 1 . . 3 . . Leg 1 | . . . . 1 . Wheel 6 | 1 . . 3 2 . Hover 1 | . . . . 1 . Flight . | . . . . . . Utility 15 | . 2 . 5 8 . Device 5 | . . . 2 3 . Storage 1 | . 1 . . . . Processor 5 | . . . . 5 . Hackware . | . . . . . . Protection 4 | . 1 . 3 . . Artifact . | . . . . . . Weapon 17 | 1 . . 4 10 2 Energy Gun 3 | . . . . 3 . Energy Cannon . | . . . . . . Ballistic Gun 7 | 1 . . 3 3 . Ballistic Cannon 1 | . . . . 1 . Launcher 4 | . . . 1 2 1 Special Weapon . | . . . . . . Impact Weapon 1 | . . . . 1 . Slashing Weapon 1 | . . . . . 1 Piercing Weapon . | . . . . . . Special Melee Weapon . | . . . . . . Unidentified Prototypes . | . . . . . . Parts Lost 27 | . . 1 4 20 2 Power 4 | . . 1 2 1 . Propulsion 8 | . . . 1 6 1 Utility 7 | . . . 1 6 . Weapon 8 | . . . . 7 1 Highest Loss Streak 9 | . . 1 2 9 2 To Critical Strikes 1 | . . . . 1 . Average Slot Usage (%) 87 | . 95 87 93 77 57 Engine 6 | . 14 2 9 2 . Treads 12 | . 14 14 19 1 . Wheel 12 | . 14 14 10 13 . Device 3 | . . . 5 11 . Storage 11 | . 14 14 11 8 . Processor 3 | . . . . 10 36 Protection 12 | . 9 14 16 9 . Energy Gun 8 | . 14 14 2 3 . Ballistic Gun 13 | . 14 14 18 6 3 Naked Turns . | . . . . . . Heaviest Build 93 | 10 86 86 90 93 3 Greatest Support 32 | 16 16 16 26 32 8 Greatest Overweight (x) 27 | . 5 5 27 27 . Average Overweight (x) 3 | . 3 5 4 2 . Largest Inventory Capacity 25 | 8 25 25 25 25 5 Average Capacity 23 | 8 19 25 25 24 5 Most Carried 25 | 7 14 23 25 22 5 Average Carried 18 | 6 9 21 22 17 5 Final Capacity 25 | 8 25 25 25 5 5 Final Carried 23 | 7 14 23 23 5 5 Class Distribution -------------------- 93% | Mutant 6% | Scavenger-Mutant Dominant Class ---------------- Mutant | -10/Materials Mutant | -10/Mines Mutant | -9/Materials Mutant | -8/Materials Mutant | -8/Storage Resources | -11 -10 -10 -9 -8 -8 ----------- Run | Jun Mat Min Mat Mat Sto Matter Collected 1140 | 231 27 107 279 432 64 Remotely 347 | . . . 111 236 . Salvage Created 1510 | 63 103 . 407 713 224 Parts 90 | 4 8 . 28 37 13 Haulers Intercepted . | . . . . . . Recyclers Shooed 2 | . . . 1 1 . Parts Field Recycled . | . . . . . . Retrieved Matter . | . . . . . . Parts Self-Destructed . | . . . . . . Prevented . | . . . . . . Kills | -11 -10 -10 -9 -8 -8 ------- Run | Jun Mat Min Mat Mat Sto Combat Hostiles Destroyed 28 | . 2 . 14 12 . Guns 16 | . 2 . 7 7 . Cannons 2 | . . . . 2 . AOE 8 | . . . 7 1 . Classes Destroyed 8 | 1 2 . 4 1 . Worker 2 | . . . 1 1 . Builder 3 | . . . 1 1 1 Recycler 5 | 1 . . . 2 2 Watcher 4 | . 1 . . 2 1 Swarmer 3 | . . . 3 . . Grunt 17 | . 2 . 8 7 . Sentry 6 | . . . 3 3 . Specialist 2 | . . . . 2 . Best Kill Streak 11 | 1 2 . 9 11 4 Combat Bots Only 8 | . 2 . 8 5 . Max Kills in Single Turn 3 | 1 1 . 3 3 1 Gunslinging . | . . . . . . Exploded 2 | . . . 2 1 . Melee . | . . . . . . Uniques/NPCs Destroyed . | . . . . . . Combat | -11 -10 -10 -9 -8 -8 -------- Run | Jun Mat Min Mat Mat Sto Damage Taken 2577 | . 86 110 566 1691 124 Core 693 | . 32 17 84 484 76 Absorbed by Shields . | . . . . . . Redirected to Shielding 73 | . . . 35 38 . Core Remaining (%) 86 | 100 . 80 79 . . Volleys Fired 80 | 1 8 1 33 37 . Largest 2 | 2 2 2 2 2 . Hottest 88 | 60 60 60 40 88 . Shots Fired 149 | 2 16 2 59 70 . Gun 121 | 2 16 2 54 47 . Cannon 18 | . . . . 18 . Launcher 10 | . . . 5 5 . Special . | . . . . . . Kinetic 116 | 1 8 1 54 52 . Thermal 14 | 1 8 1 . 4 . Explosive 10 | . . . 5 5 . Electromagnetic 9 | . . . . 9 . Robot Hit Streak 32 | 2 3 4 12 32 . Robot Miss Streak 3 | . 1 1 3 2 . Penetration Max . | . . . . . . Secondary Targets 2 | . 1 . . 1 . Max Gunslinging Chain 1 | . 1 . . 1 . Shots Hit Robots 122 | 2 10 1 40 64 5 Core Hits 78 | 2 6 . 29 37 4 Critical Kills 1 | . 1 . . . . Critical Parts Destroyed 3 | . . . 1 2 . Critical Strikes 7 | . 1 . 1 4 1 Destroy 2 | . 1 . 1 . . Blast 1 | . . . . 1 . Corrupt 1 | . . . . 1 . Smash 2 | . . . . 2 . Sever 1 | . . . . . 1 Melee Attacks 18 | . . . . 12 6 Impact 12 | . . . . 12 . Slashing 6 | . . . . . 6 Piercing . | . . . . . . Sneak Attacks 3 | . . . . . 3 Combat Hostiles . | . . . . . . Follow-up Attacks . | . . . . . . Damage Inflicted 3046 | 18 103 10 939 1710 266 Guns 860 | 18 103 10 305 424 . Cannons 339 | . . . . 339 . Explosions 1335 | . . . 634 701 . Melee 504 | . . . . 238 266 Ramming 8 | . . . . 8 . Kinetic 932 | 6 33 . 305 588 . Thermal 150 | 12 70 10 . 58 . Explosive 1335 | . . . 634 701 . Electromagnetic 117 | . . . . 117 . Impact 238 | . . . . 238 . Slashing 266 | . . . . . 266 Piercing . | . . . . . . Highest Corruption 5 | . 2 2 . 5 5 Average Corruption 2 | . 2 2 . 4 5 Corruption Purged . | . . . . . . Corruption Blocked . | . . . . . . Effects 12 | . 2 7 . 2 1 Message Errors 3 | . . 2 . 1 . Matter Fused 2 | . 1 . . 1 . Heat Flow Errors 1 | . . 1 . . . Energy Discharges 1 | . . . . . 1 Parts Fused 1 | . . 1 . . . Data Loss (minor) 2 | . . 2 . . . Data Loss (major) 2 | . 1 1 . . . Overload Shots . | . . . . . . Overflow Damage 66 | . . . 8 58 . Projectiles . | . . . . . . Explosions 17 | . . . 8 9 . Melee 49 | . . . . 49 . Knockbacks 6 | . . . . 6 . Impact . | . . . . . . Kinetic 5 | . . . . 5 . Secondary 1 | . . . . 1 . Self-Inflicted Damage 4 | . . . . 4 . Shots . | . . . . . . Rammed 4 | . . . . 4 . Targets Rammed 4 | . . . . 4 . Kicked . | . . . . . . Crushed . | . . . . . . Highest Temperature 208 | 20 58 208 26 33 . Average Temperature 20 | 15 22 83 4 11 . Received Heat Transfer 999 | . 48 45 240 630 36 Siege Activations . | . . . . . . Robots Corrupted . | . . . . . . Combat Hostiles . | . . . . . . Parts Fried 1 | . . . . 1 . Impact Corruptions 3 | . . . . 3 . Robots Melted . | . . . . . . Combat Hostiles . | . . . . . . Parts Melted . | . . . . . . Heat Transferred 348 | 25 150 25 . 148 . Parts Sabotaged . | . . . . . . Parts Stolen . | . . . . . . Parts Stripped . | . . . . . . Power Chain Reactions . | . . . . . . Missiles Intercepted . | . . . . . . Alert | -11 -10 -10 -9 -8 -8 ------- Run | Jun Mat Min Mat Mat Sto Peak Influence 404 | 5 102 54 404 399 215 Initial 143 | . 3 39 . 90 143 Average 114 | 3 72 26 172 214 162 Maximum Alert Level 2 | . . . 2 1 1 Low Security (%) 74 | 100 100 100 38 61 76 Level 1 25 | . . . 60 38 23 Level 2 . | . . . 1 . . Level 3 . | . . . . . . Level 4 . | . . . . . . Level 5 . | . . . . . . High Security . | . . . . . . Max Security . | . . . . . . Squads Dispatched 9 | . 1 . 2 6 . Investigation 4 | . 1 . 1 2 . Extermination . | . . . . . . Reinforcement 3 | . . . 1 2 . Assault . | . . . . . . Garrison 2 | . . . . 2 . Intercept . | . . . . . . Searches Triggered . | . . . . . . Construction Impeded 1 | . . . 1 . . Haulers Reinforced . | . . . . . . Active Scanning Responses . | . . . . . . Cargo Convoy Interrupts . | . . . . . . Stealth | -11 -10 -10 -9 -8 -8 --------- Run | Jun Mat Min Mat Mat Sto Distress Signals 7 | . 1 . 4 2 . Communications Jammed . | . . . . . . Distress Signals . | . . . . . . Times Spotted 60 | . 4 5 22 24 5 Peak Tracking Total 8 | . 4 5 6 8 7 Tactical Retreats 3 | . 1 . . 2 . Traps | -11 -10 -10 -9 -8 -8 ------- Run | Jun Mat Min Mat Mat Sto Traps Triggered 6 | . 1 . 3 2 . Indirectly . | . . . . . . Trap Hack Attempts . | . . . . . . Triggered . | . . . . . . Disarmed . | . . . . . . Reprogrammed . | . . . . . . Reused . | . . . . . . Traps Extracted . | . . . . . . Installed . | . . . . . . Triggered . | . . . . . . Machines | -11 -10 -10 -9 -8 -8 ---------- Run | Jun Mat Min Mat Mat Sto Machines Disabled 1 | . . . 1 . . Max in Single Turn 1 | . . . 1 . . Machines Repaired . | . . . . . . Machines Sabotaged . | . . . . . . Overloaded Fab Kills . | . . . . . . Hacking | -11 -10 -10 -9 -8 -8 --------- Run | Jun Mat Min Mat Mat Sto Machines Accessed 8 | . 3 . 3 2 . Terminals 6 | . 3 . 1 2 . Fabricators . | . . . . . . Repair Stations . | . . . . . . Recycling Units 1 | . . . 1 . . Scanalyzers 1 | . . . 1 . . Garrison Access . | . . . . . . Total Hacks 15 | . 6 . 7 2 . Successful 8 | . 2 . 5 1 . Failed 7 | . 4 . 2 1 . Catastrophic 3 | . 1 . 1 1 . Database Lockouts . | . . . . . . Manual 12 | . 6 . 4 2 . Terminals 11 | . 6 . 3 2 . Fabricators . | . . . . . . Repair Stations . | . . . . . . Recycling Units 2 | . . . 2 . . Scanalyzers 2 | . . . 2 . . Garrison Access . | . . . . . . Terminal Hacks 5 | . 2 . 2 1 . Record 1 | . . . 1 . . Robot Analysis 3 | . 2 . 1 . . Branch Access Points 1 | . . . . 1 . Fabricator Hacks . | . . . . . . Repair Station Hacks . | . . . . . . Recycling Unit Hacks . | . . . . . . Scanalyzer 2 | . . . 2 . . Insert Component 1 | . . . 1 . . Analyze 1 | . . . 1 . . Garrison Access Hacks . | . . . . . . Unauthorized Hacks 1 | . . . 1 . . Terminals . | . . . . . . Fabricators . | . . . . . . Repair Stations . | . . . . . . Recycling Units 1 | . . . 1 . . Reject 1 | . . . 1 . . Scanalyzers . | . . . . . . Garrison Access . | . . . . . . Data Cores Recovered . | . . . . . . Used . | . . . . . . Hacking Detections 5 | . 3 . 1 1 . Full Trace Events 2 | . 1 . 1 . . Feedback Events . | . . . . . . Feedback Blocked . | . . . . . . Robot Schematics Acquired . | . . . . . . Robots Built . | . . . . . . Authchips . | . . . . . . Time . | . . . . . . Total Robot Build Rating . | . . . . . . Part Schematics Acquired 1 | . . . 1 . . Parts Built . | . . . . . . Authchips . | . . . . . . Time . | . . . . . . Total Part Build Rating . | . . . . . . Parts Repaired . | . . . . . . Time . | . . . . . . Parts Recycled . | . . . . . . Recycled Matter . | . . . . . . Retrieved Matter . | . . . . . . Retrieved Components . | . . . . . . Parts Scanalyzed 1 | . . . 1 . . Part Schematics Acquired 1 | . . . 1 . . Parts Damaged . | . . . . . . Bothacking | -11 -10 -10 -9 -8 -8 ------------ Run | Jun Mat Min Mat Mat Sto Used RIF Installer . | . . . . . . Robots Hacked . | . . . . . . Non-combat . | . . . . . . Combat . | . . . . . . Robot Hacks Applied . | . . . . . . Relay Couplers Released . | . . . . . . Fabnet Peak Effective % . | . . . . . . Robots Rewired . | . . . . . . Allies Hacked . | . . . . . . Hacks Repelled . | . . . . . . Allies | -11 -10 -10 -9 -8 -8 -------- Run | Jun Mat Min Mat Mat Sto Total Allies . | . . . . . . Largest Group . | . . . . . . Highest-Rated Group . | . . . . . . Highest-Rated Ally . | . . . . . . Total Orders . | . . . . . . Ally Attacks . | . . . . . . Total Damage . | . . . . . . Kills . | . . . . . . Allies Corrupted . | . . . . . . Allies Melted . | . . . . . . Intel | -11 -10 -10 -9 -8 -8 ------- Run | Jun Mat Min Mat Mat Sto Robot Analysis Total 3 | . 2 . 1 . . Derelict Logs Recovered 1 | . . 1 . . . Drone Launches . | . . . . . . Drone Recoveries . | . . . . . . Exploration | -11 -10 -10 -9 -8 -8 ------------- Run | Jun Mat Min Mat Mat Sto Turns Passed 2073 | 31 364 640 589 389 60 Spaces Moved 1071 | 20 225 348 268 138 72 Core 13 | . . . 1 1 11 Treads . | . . . . . . Legs . | . . . . . . Wheels 980 | 20 225 348 267 120 . Hover 78 | . . . . 17 61 Flight . | . . . . . . Fastest Speed 50 | 100 100 175 135 60 50 Average Speed 155 | 100 146 175 176 139 58 Slowest Speed 1400 | 100 175 175 1400 1400 60 Overloaded Moves . | . . . . . . Propulsion Burnouts . | . . . . . . Robots Hopped . | . . . . . . Cave-ins Triggered . | . . . . . . Exploration Rate (%) 32 | 2 50 64 36 22 22 Regions Visited 5 Branch Regions 2 Pre-discovered Areas . | . . . . . . Known Exits Taken 1 | . . . . 1 . Unknown Exits Taken 4 | 1 1 1 1 . . Scrap Searched 2 | . . 2 . . . Spaces Dug . | . . . . . . Terrain Destroyed 62 | . . . 32 30 . Melee . | . . . . . . Projectile . | . . . . . . AOE 62 | . . . 32 30 . Terrain Rammed . | . . . . . . Walls Destroyed . | . . . . . . Machines Disabled . | . . . . . . Actions | -11 -10 -10 -9 -8 -8 --------- Run | Jun Mat Min Mat Mat Sto Total 1314 | 28 246 377 335 247 81 Wait 47 | . 3 20 . 24 . Move 1066 | 19 224 347 267 137 72 Hop . | . . . . . . Pick Up 40 | 3 8 9 14 6 . Fast Attach 8 | . 1 . 2 3 2 Attach 29 | . 1 . 12 16 . Detach . | . . . . . . Swap 11 | 3 . . 4 4 . Drop 11 | 2 1 . 3 4 1 Fire 80 | 1 8 1 33 37 . Melee 18 | . . . . 12 6 Ram 4 | . . . . 4 . Kick . | . . . . . . Crush . | . . . . . . Escape Stasis . | . . . . . . Rewire . | . . . . . . Trap . | . . . . . . Miscellaneous . | . . . . . . Route ------- -11/Junkyard -10/Materials (discovered 2 exits: *Mat / [*Min]) -10/Mines (discovered 2 exits: *Mat x2) -9/Materials (discovered 2 exits: *Mat / Min) -8/Materials (discovered 2 exits: *Sto x2) -8/Storage History --------- Turn | Location | Event 6 | -11/Junkyard | Discovered new exit (range 1) 32 | -11/Junkyard | Entered Materials 97 | -10/Materials | Discovered new exit (range 15) 271 | -10/Materials | Discovered new exit (range 15) 303 | -10/Materials | Build established: Mutant 396 | -10/Materials | Entered Mines 498 | -10/Mines | Joined a pair of Derelicts in attacking an 0b10 outpost 588 | -10/Mines | Found a damaged Exp. Sensor Array with a note attached 592 | -10/Mines | Found Prototype Device 640 | -10/Mines | Discovered new exit (range 6) 843 | -10/Mines | Discovered new exit (range 9) 1036 | -10/Mines | Entered Materials 1036 | -9/Materials | Evolved 2 slots: Propulsion x1, Utility x1 1037 | -9/Materials | Identified exit to Mines 1269 | -9/Materials | Destroyed 8 combat bots 1548 | -9/Materials | Discovered new exit (range 16) 1625 | -9/Materials | Entered another Materials area 1625 | -8/Materials | Evolved 2 slots: Utility x2 1781 | -8/Materials | Lost 9 parts (1p3n2u3w) 1900 | -8/Materials | Garrison activated, responded to threat 1944 | -8/Materials | Lost 4 parts (1n1u2w) 1962 | -8/Materials | Identified exit to Storage 1972 | -8/Materials | Core integrity fell below 50% 2002 | -8/Materials | Core integrity fell below 20% 2014 | -8/Materials | Entered Storage 2024 | -8/Storage | Lost 6 parts (2n3u1w) 2074 | -8/Storage | Destroyed by Y-45 Defender with Heavy Assault Rifle Last Messages --------------- GOAL=ESCAPE 02036_ Acquired Scythe. 02038_ Dropped Hvy. Assault Rifle. 02043_ Acquired Mni. Grenade Launcher. 02043_ R-06 Scavenger collects Hvy. Assault Rifle. 02050_ Sneak attack on U-05 Engineer. 02050_ U-05 Engineer destroyed. 02051_ R-06 Scavenger collects Terrain Scanner. 02053_ Acquired 18 matter. 02054_ Sneak attack on R-06 Scavenger. 02054_ R-06 Scavenger destroyed. 02054_ R-06 Scavenger collects Terrain Scanner. 02057_ Acquired 46 matter. 02057_ Sneak attack on R-06 Scavenger. 02057_ R-06 Scavenger destroyed. 02063_ W-25 Informer destroyed. 02067_ Airjet destroyed. 02071_ Mni. Grenade Launcher destroyed. 02072_ System corrupted: Energy discharge (-37). 02073_ Y-45 Defender Lgt. Treads severed. Map ----- +----------------------------------------------------+ | ?????????????????????????????????????????????????? | | ?????????????????????????????????????????????????? | | ?????????????????????????????????????????????????? | | ?????????????????????????????????????????????????? | | ?????????????????????????????????????????????????? | | ?????????????????????????????????????????????????? | | ?????????????????????????????????????????????????? | | ?????????????????????????????????????????????????? | | ?????????????????????????????????????????????????? | | ?????????????????????????????????????????????????? | | ?????????????????????????????????????????????????? | | ?????????????????????????????????????????????????? | | ?????????????????????????????????????????????????? | | ?????????????????????????????????????????????????? | | ?????????????????????????????????????????????????? | | ?????????????????????????????????????????????????? | | ?????????????????????????????????????????????????? | | ?????????????????????????????????????????????????? | | ?????????????????????????????????????????????????? | | ?????????????????????????????????????????????????? | | ?????????????????????????????????????????????????? | | ??????????????????##+######??????????????????????? | | ?????????????????# #??????????????????????? | | ?????????????????# """" ??????????????????????? | | ?????????????????# """" Y#??????????????????????? | | ?????????????????# """" @#??????????????????????? | | ?????????????????# """" #??????????????????????? | | ?????????????????# #??????????????????????? | | ?????????????????# #??????????????????????? | | ?????????????????# #??????????????????????? | | ?######??????????# #??????????????????????? | | ?# #####+#########+##+######/????????????????? | | ?# ????????????? | | ?# !! ????????????? | | ?# %=! ????????????? | | ?? ########%######+#########+###?????????????? | | ??# #########+###??????????????????????????????? | | ??# # !%!= #??????????????????????????????? | | ??# # [ !![= !#??????????????????????????????? | | ??# # = ! #??????????????????????????????? | | ??# / * #??????????????????????????????? | | ??# # #??????????????????????????????? | | ??# # #??????????????????????????????? | | ??# # #??????????????????????????????? | | ??# ########+####??????????????????????????????? | | ??# ######## #############################?????? | | ??# #?????? | | ??# #?????? | | ??# #?????? | | ??##########################################?????? | +----------------------------------------------------+ Best States ------------- Heat Dissipation 31 Energy Generation 14 Energy Capacity 140 Matter Stores 300 Matter Capacity 300 Sight Range 16 Robot Scan Range 14 Terrain Scan Density 10 Armor Coverage 150 Utility Shielding 33 Weapon Shielding 33 Evasion (%) 53 Targeting Accuracy 10 Core Analysis 6 Armor Integrity Analysis 30 Item Schematics ----------------- Huge Storage Unit | -9/Materials | Scanalyzed Robot Schematics ------------------ None Fabricated ------------ Nothing Alien Tech Used ----------------- None Achievements -------------- None Challenges ------------ None Game ------ Seed CoolantFluxStripper Manual? 0 Play Time 00:20:39 Cumulative 145.6 hours Start 2023.11.09 @ 18:11:38 End 2023.11.09 @ 18:31:38 Sessions 1 Manual Loads 0 Difficulty Rogue Special Mode None Game No. 220 Rogue 220 Adventurer 0 Explorer 0 Win Type - Total 0 Types 0/0/0/0/0/0/0/0/0 Lore% 49 Gallery% 58 Achievement% 43 Wizard Run 0 Options --------- ASCII 0 Keyboard 0 Movement Mouse Keybinds 1 Fullscreen 2 Font 18/X11 Map View 76x50 Tactical HUD 1 Map Filters SATURATION(75) Filters LOW_CONTRAST(23,23,23) Steam 1 RUN: 45c076c3-4c87-45e6-af45-1fe6ea75f496